[Event "Titled Tuesday Blitz May 03 Early 2022"]
[White "Stevens, Christian"]
[Black "Harshavardhan G B"]
[WhiteFideId "2604450"]
[BlackFideId "25059009"]
[WhiteElo "2505"]
[BlackElo "1831"]
[Result "1-0"]
[Round "06"]
[TimeControl "180+1"]
[Date "2022.05.03"]
[WhiteClock "0:00:04"]
[BlackClock "0:00:27"]

1. e4 {[%clk 0:03:00]}  e5 {[%clk 0:02:59]} 2. Nf3 {[%clk 0:02:57]}  Nc6 {[%clk 0:02:58]} 3. Bb5 {[%clk 0:02:56]}  a6 {[%clk 0:02:57]} 4. Ba4 {[%clk 0:02:54]}  d6 {[%clk 0:02:58]} 5. c3 {[%clk 0:02:52]}  f5 {[%clk 0:02:53]} 6. exf5 {[%clk 0:02:50]}  Bxf5 {[%clk 0:02:54]} 7. d4 {[%clk 0:02:49]}  e4 {[%clk 0:02:54]} 8. Ng5 {[%clk 0:02:28]}  d5 {[%clk 0:02:50]} 9. f3 {[%clk 0:02:17]}  Nf6 {[%clk 0:02:45]} 10. fxe4 {[%clk 0:02:15]}  Nxe4 {[%clk 0:02:43]} 11. O-O {[%clk 0:01:58]}  Qd7 {[%clk 0:02:40]} 12. Nxe4 {[%clk 0:01:16]}  Bxe4 {[%clk 0:02:41]} 13. Nd2 {[%clk 0:01:16]}  Bg6 {[%clk 0:02:37]} 14. Nf3 {[%clk 0:01:11]}  b5 {[%clk 0:02:33]} 15. Bb3 {[%clk 0:01:01]}  Be7 {[%clk 0:02:33]} 16. Ng5 {[%clk 0:00:49]}  O-O-O {[%clk 0:02:19]} 17. Nf7 {[%clk 0:00:45]}  Bxf7 {[%clk 0:02:14]} 18. Rxf7 {[%clk 0:00:46]}  g6 {[%clk 0:01:59]} 19. Bh6 {[%clk 0:00:35]}  Qe6 {[%clk 0:01:58]} 20. Qf3 {[%clk 0:00:33]}  Na5 {[%clk 0:01:22]} 21. Bxd5 {[%clk 0:00:22]}  Rxd5 {[%clk 0:01:20]} 22. Rxe7 {[%clk 0:00:21]}  Qxe7 {[%clk 0:01:21]} 23. Qxd5 {[%clk 0:00:21]}  Kb8 {[%clk 0:01:21]} 24. Rf1 {[%clk 0:00:18]}  Re8 {[%clk 0:01:19]} 25. a4 {[%clk 0:00:15]}  Qe2 {[%clk 0:01:10]} 26. axb5 {[%clk 0:00:13]}  axb5 {[%clk 0:01:11]} 27. h3 {[%clk 0:00:08]}  Nb7 {[%clk 0:01:08]} 28. Rf7 {[%clk 0:00:07]}  Nd6 {[%clk 0:00:57]} 29. Rxh7 {[%clk 0:00:05]}  Qd1+ {[%clk 0:00:51]} 30. Kh2 {[%clk 0:00:04]}  Qf1 {[%clk 0:00:43]} 31. Bg5 {[%clk 0:00:02]}  Re1 {[%clk 0:00:35]} 32. Rh8+ {[%clk 0:00:01]}  Nc8 {[%clk 0:00:33]} 33. Qd7 {[%clk 0:00:01]}  Qf5 {[%clk 0:00:27]} 34. Qxf5 {[%clk 0:00:04]}  gxf5 {[%clk 0:00:28]} 35. h4 {[%clk 0:00:04]}  Re2 {[%clk 0:00:27]} 36. h5 {[%clk 0:00:01]}  Kb7 {[%clk 0:00:27]} 37. h6 {[%clk 0:00:02]}  Nd6 {[%clk 0:00:27]} 38. Rg8 {[%clk 0:00:01]}  f4 {[%clk 0:00:23]} 39. h7 {[%clk 0:00:01]}  f3 {[%clk 0:00:24]} 40. h8=Q {[%clk 0:00:01]}  Rxg2+ {[%clk 0:00:24]} 41. Kh1 {[%clk 0:00:01]}  Ne4 {[%clk 0:00:24]} 42. Rb8+ {[%clk 0:00:02]}  Kc6 {[%clk 0:00:23]} 43. Qe8+ {[%clk 0:00:02]}  Kd5 {[%clk 0:00:21]} 44. Qe5+ {[%clk 0:00:02]}  Kc4 {[%clk 0:00:22]} 45. Qxe4 {[%clk 0:00:03]}  Rxg5 {[%clk 0:00:23]} 46. Qxf3 {[%clk 0:00:02]}  Kb3 {[%clk 0:00:22]} 47. Qf1 {[%clk 0:00:02]}  Kxb2 {[%clk 0:00:23]} 48. Rxb5+ {[%clk 0:00:02]}  Rxb5 {[%clk 0:00:24]} 49. Qxb5+ {[%clk 0:00:03]}  Kxc3 {[%clk 0:00:25]} 50. Qc5+ {[%clk 0:00:03]}  Kd3 {[%clk 0:00:26]} 51. d5 {[%clk 0:00:03]}  Ke4 {[%clk 0:00:25]} 52. Qc6 {[%clk 0:00:03]}  Ke5 {[%clk 0:00:25]} 53. Kg2 {[%clk 0:00:03]}  Kd4 {[%clk 0:00:25]} 54. Kf3 {[%clk 0:00:03]}  Ke5 {[%clk 0:00:26]} 55. Ke3 {[%clk 0:00:04]}  Kf5 {[%clk 0:00:26]} 56. Qxc7 {[%clk 0:00:03]}  Kf6 {[%clk 0:00:27]} 57. Qd7 {[%clk 0:00:03]}  Ke5 {[%clk 0:00:27]} 58. Qe6# {[%clk 0:00:04]} 1-0


[Site "https://www.chess.com"]

[Event "Titled Tuesday Blitz May 03 Early 2022"]
[White "Subaste, Arman"]
[Black "Ljukin, Sergei"]
[WhiteFideId "5221080"]
[BlackFideId "14102200"]
[WhiteElo "1856"]
[BlackElo "2312"]
[Result "0-1"]
[Round "06"]
[TimeControl "180+1"]
[Date "2022.05.03"]
[WhiteClock "0:00:11"]
[BlackClock "0:01:03"]

1. d4 {[%clk 0:03:00]}  d5 {[%clk 0:02:59]} 2. Bg5 {[%clk 0:03:00]}  f6 {[%clk 0:02:59]} 3. Bh4 {[%clk 0:02:59]}  Nh6 {[%clk 0:02:59]} 4. e3 {[%clk 0:02:56]}  Nf5 {[%clk 0:02:59]} 5. Bg3 {[%clk 0:02:56]}  h5 {[%clk 0:02:58]} 6. Be2 {[%clk 0:02:50]}  h4 {[%clk 0:02:56]} 7. Bh5+ {[%clk 0:02:48]}  Kd7 {[%clk 0:02:55]} 8. Bg6 {[%clk 0:02:35]}  e6 {[%clk 0:02:49]} 9. e4 {[%clk 0:02:21]}  hxg3 {[%clk 0:02:41]} 10. h3 {[%clk 0:01:34]}  gxf2+ {[%clk 0:02:31]} 11. Kxf2 {[%clk 0:01:35]}  Ne7 {[%clk 0:02:31]} 12. Qg4 {[%clk 0:01:33]}  Nxg6 {[%clk 0:02:29]} 13. Qxg6 {[%clk 0:01:34]}  Qe8 {[%clk 0:02:27]} 14. Qg3 {[%clk 0:01:34]}  dxe4 {[%clk 0:02:27]} 15. Nc3 {[%clk 0:01:33]}  Bd6 {[%clk 0:02:24]} 16. Qxg7+ {[%clk 0:01:29]}  Be7 {[%clk 0:02:00]} 17. Nxe4 {[%clk 0:01:27]}  Qf8 {[%clk 0:02:00]} 18. Qg3 {[%clk 0:01:17]}  b6 {[%clk 0:02:00]} 19. Nf3 {[%clk 0:00:58]}  Bb7 {[%clk 0:02:00]} 20. Rhe1 {[%clk 0:00:58]}  Nc6 {[%clk 0:01:58]} 21. Rad1 {[%clk 0:00:57]}  Re8 {[%clk 0:01:53]} 22. d5 {[%clk 0:00:56]}  exd5 {[%clk 0:01:53]} 23. Rxd5+ {[%clk 0:00:57]}  Kc8 {[%clk 0:01:53]} 24. Qg4+ {[%clk 0:00:57]}  Kb8 {[%clk 0:01:52]} 25. Red1 {[%clk 0:00:54]}  Ne5 {[%clk 0:01:49]} 26. Qe6 {[%clk 0:00:44]}  Bc5+ {[%clk 0:01:24]} 27. Nxc5 {[%clk 0:00:41]}  Rxe6 {[%clk 0:01:24]} 28. Nxe6 {[%clk 0:00:38]}  Qe7 {[%clk 0:01:24]} 29. Rd8+ {[%clk 0:00:14]}  Rxd8 {[%clk 0:01:12]} 30. Rxd8+ {[%clk 0:00:14]}  Bc8 {[%clk 0:01:12]} 31. Nxe5 {[%clk 0:00:11]}  fxe5 {[%clk 0:01:03]} 0-1


[Site "https://www.chess.com"]

[Event "Titled Tuesday Blitz May 03 Early 2022"]
[White "Svane, Rasmus"]
[Black "Lorparizangeneh, Shahin"]
[WhiteFideId "4657101"]
[BlackFideId "12521604"]
[WhiteElo "2645"]
[BlackElo "2525"]
[Result "1-0"]
[Round "06"]
[TimeControl "180+1"]
[Date "2022.05.03"]
[WhiteClock "0:00:20"]
[BlackClock "0:00:02"]

1. Nf3 {[%clk 0:03:00]}  d5 {[%clk 0:02:59]} 2. g3 {[%clk 0:03:01]}  Nc6 {[%clk 0:02:57]} 3. d4 {[%clk 0:03:01]}  Bf5 {[%clk 0:02:57]} 4. Bg2 {[%clk 0:03:02]}  Nb4 {[%clk 0:02:58]} 5. Na3 {[%clk 0:03:02]}  e6 {[%clk 0:02:58]} 6. O-O {[%clk 0:03:03]}  Be7 {[%clk 0:02:56]} 7. c3 {[%clk 0:03:03]}  Nc6 {[%clk 0:02:56]} 8. Qb3 {[%clk 0:03:04]}  Rb8 {[%clk 0:02:55]} 9. Re1 {[%clk 0:03:04]}  h6 {[%clk 0:02:51]} 10. Ne5 {[%clk 0:02:59]}  Nxe5 {[%clk 0:02:47]} 11. dxe5 {[%clk 0:03:00]}  Bxa3 {[%clk 0:02:19]} 12. Qxa3 {[%clk 0:03:01]}  Ne7 {[%clk 0:02:15]} 13. Qxa7 {[%clk 0:02:53]}  O-O {[%clk 0:02:06]} 14. Qc5 {[%clk 0:02:31]}  b6 {[%clk 0:01:59]} 15. Qb5 {[%clk 0:02:28]}  c6 {[%clk 0:01:56]} 16. Qb3 {[%clk 0:02:27]}  c5 {[%clk 0:01:56]} 17. f4 {[%clk 0:01:59]}  Nc6 {[%clk 0:01:36]} 18. Be3 {[%clk 0:01:58]}  Na5 {[%clk 0:01:26]} 19. Qd1 {[%clk 0:01:58]}  Nc4 {[%clk 0:01:27]} 20. Bc1 {[%clk 0:01:49]}  d4 {[%clk 0:01:22]} 21. cxd4 {[%clk 0:01:47]}  cxd4 {[%clk 0:01:19]} 22. b3 {[%clk 0:01:47]}  Ne3 {[%clk 0:01:17]} 23. Bxe3 {[%clk 0:01:46]}  dxe3 {[%clk 0:01:18]} 24. Bf3 {[%clk 0:01:27]}  g5 {[%clk 0:01:07]} 25. Qxd8 {[%clk 0:01:06]}  Rfxd8 {[%clk 0:01:07]} 26. fxg5 {[%clk 0:00:48]}  hxg5 {[%clk 0:01:08]} 27. g4 {[%clk 0:00:48]}  Bg6 {[%clk 0:01:07]} 28. Rec1 {[%clk 0:00:45]}  Rbc8 {[%clk 0:00:54]} 29. Rxc8 {[%clk 0:00:44]}  Rxc8 {[%clk 0:00:55]} 30. a4 {[%clk 0:00:44]}  Rc7 {[%clk 0:00:11]} 31. b4 {[%clk 0:00:44]}  Ra7 {[%clk 0:00:10]} 32. a5 {[%clk 0:00:45]}  bxa5 {[%clk 0:00:11]} 33. bxa5 {[%clk 0:00:42]}  Kf8 {[%clk 0:00:10]} 34. a6 {[%clk 0:00:42]}  Ke7 {[%clk 0:00:11]} 35. Bb7 {[%clk 0:00:37]}  Bc2 {[%clk 0:00:10]} 36. Ra3 {[%clk 0:00:37]}  Kd7 {[%clk 0:00:02]} 37. Rxe3 {[%clk 0:00:36]}  Ba4 {[%clk 0:00:02]} 38. Rf3 {[%clk 0:00:30]}  Ke7 {[%clk 0:00:03]} 39. Ra3 {[%clk 0:00:27]}  Bb5 {[%clk 0:00:03]} 40. Kf2 {[%clk 0:00:27]}  Bc4 {[%clk 0:00:03]} 41. e4 {[%clk 0:00:27]}  Bb5 {[%clk 0:00:03]} 42. Kg3 {[%clk 0:00:27]}  Kf8 {[%clk 0:00:03]} 43. h4 {[%clk 0:00:27]}  gxh4+ {[%clk 0:00:04]} 44. Kxh4 {[%clk 0:00:28]}  Kg7 {[%clk 0:00:04]} 45. Kg5 {[%clk 0:00:28]}  Bc4 {[%clk 0:00:05]} 46. Ra5 {[%clk 0:00:27]}  Bd3 {[%clk 0:00:05]} 47. Kf4 {[%clk 0:00:27]}  Be2 {[%clk 0:00:05]} 48. g5 {[%clk 0:00:28]}  Bc4 {[%clk 0:00:06]} 49. Ke3 {[%clk 0:00:28]}  Kg6 {[%clk 0:00:06]} 50. Kd4 {[%clk 0:00:25]}  Be2 {[%clk 0:00:06]} 51. Ra2 {[%clk 0:00:22]}  Bxa6 {[%clk 0:00:05]} 52. Bxa6 {[%clk 0:00:22]}  Kxg5 {[%clk 0:00:06]} 53. Bc4 {[%clk 0:00:20]}  Rd7+ {[%clk 0:00:02]} 54. Ke3 {[%clk 0:00:20]}  Kg6 {[%clk 0:00:02]} 55. Rg2+ {[%clk 0:00:20]} 1-0


[Site "https://www.chess.com"]

[Event "Titled Tuesday Blitz May 03 Early 2022"]
[White "Tasev, Dejan"]
[Black "Bellissimo, Joseph F."]
[WhiteFideId "936618"]
[BlackFideId "2609843"]
[WhiteElo "2253"]
[BlackElo "2061"]
[Result "0-1"]
[Round "06"]
[TimeControl "180+1"]
[Date "2022.05.03"]
[WhiteClock "0:00:27"]
[BlackClock "0:00:28"]

1. e4 {[%clk 0:03:00]}  e6 {[%clk 0:02:58]} 2. d4 {[%clk 0:03:00]}  d5 {[%clk 0:02:58]} 3. Nc3 {[%clk 0:03:01]}  Nf6 {[%clk 0:02:58]} 4. e5 {[%clk 0:03:01]}  Nfd7 {[%clk 0:02:58]} 5. f4 {[%clk 0:03:01]}  c5 {[%clk 0:02:58]} 6. Nf3 {[%clk 0:03:01]}  Nc6 {[%clk 0:02:59]} 7. Be3 {[%clk 0:03:01]}  a6 {[%clk 0:02:59]} 8. Qd2 {[%clk 0:02:59]}  b5 {[%clk 0:03:00]} 9. Be2 {[%clk 0:02:59]}  Qb6 {[%clk 0:03:00]} 10. Nd1 {[%clk 0:02:56]}  Bb7 {[%clk 0:02:58]} 11. c3 {[%clk 0:02:55]}  f6 {[%clk 0:02:53]} 12. exf6 {[%clk 0:02:54]}  gxf6 {[%clk 0:02:52]} 13. Nf2 {[%clk 0:02:54]}  O-O-O {[%clk 0:02:52]} 14. O-O {[%clk 0:02:52]}  Rg8 {[%clk 0:02:28]} 15. a3 {[%clk 0:02:43]}  e5 {[%clk 0:02:16]} 16. fxe5 {[%clk 0:02:37]}  fxe5 {[%clk 0:02:16]} 17. dxe5 {[%clk 0:02:34]}  Ncxe5 {[%clk 0:02:11]} 18. Nxe5 {[%clk 0:02:20]}  Nxe5 {[%clk 0:02:10]} 19. Bf4 {[%clk 0:02:19]}  d4 {[%clk 0:02:04]} 20. Bg3 {[%clk 0:02:12]}  Qc6 {[%clk 0:01:47]} 21. Ne4 {[%clk 0:01:45]}  Qxe4 {[%clk 0:01:46]} 22. Rf2 {[%clk 0:01:41]}  Bd6 {[%clk 0:01:17]} 23. Bf1 {[%clk 0:01:33]}  Ng4 {[%clk 0:00:59]} 24. Re2 {[%clk 0:01:24]}  Ne3 {[%clk 0:00:59]} 25. cxd4 {[%clk 0:01:19]}  cxd4 {[%clk 0:00:52]} 26. Rc1+ {[%clk 0:01:15]}  Kb8 {[%clk 0:00:53]} 27. Qa5 {[%clk 0:00:56]}  Bxg3 {[%clk 0:00:46]} 28. hxg3 {[%clk 0:00:54]}  Rdf8 {[%clk 0:00:45]} 29. Qc7+ {[%clk 0:00:46]}  Ka8 {[%clk 0:00:45]} 30. a4 {[%clk 0:00:42]}  d3 {[%clk 0:00:40]} 31. Rd2 {[%clk 0:00:36]}  Rc8 {[%clk 0:00:33]} 32. Qf7 {[%clk 0:00:32]}  Rxc1 {[%clk 0:00:29]} 33. Qxg8+ {[%clk 0:00:31]}  Ka7 {[%clk 0:00:29]} 34. Rf2 {[%clk 0:00:27]}  Rxf1+ {[%clk 0:00:28]} 0-1


[Site "https://www.chess.com"]

[Event "Titled Tuesday Blitz May 03 Early 2022"]
[White "Todorovic, Bojan"]
[Black "Ozturk, Efe Hakan"]
[WhiteFideId "917087"]
[BlackFideId "34550216"]
[WhiteElo "2266"]
[BlackElo "1924"]
[Result "1-0"]
[Round "06"]
[TimeControl "180+1"]
[Date "2022.05.03"]
[WhiteClock "0:01:15"]
[BlackClock "0:00:33"]

1. d4 {[%clk 0:02:59]}  Nf6 {[%clk 0:02:59]} 2. c4 {[%clk 0:02:59]}  e6 {[%clk 0:02:58]} 3. Nc3 {[%clk 0:02:59]}  Bb4 {[%clk 0:02:58]} 4. e3 {[%clk 0:02:59]}  O-O {[%clk 0:02:58]} 5. Ne2 {[%clk 0:02:59]}  b6 {[%clk 0:02:50]} 6. a3 {[%clk 0:02:58]}  Bxc3+ {[%clk 0:02:49]} 7. Nxc3 {[%clk 0:02:57]}  Bb7 {[%clk 0:02:49]} 8. Qc2 {[%clk 0:02:57]}  d6 {[%clk 0:02:49]} 9. e4 {[%clk 0:02:53]}  Nbd7 {[%clk 0:02:47]} 10. Be2 {[%clk 0:02:50]}  c5 {[%clk 0:02:43]} 11. d5 {[%clk 0:02:40]}  exd5 {[%clk 0:02:37]} 12. exd5 {[%clk 0:02:31]}  a6 {[%clk 0:02:35]} 13. O-O {[%clk 0:02:23]}  Re8 {[%clk 0:02:25]} 14. Bf4 {[%clk 0:02:14]}  Ne5 {[%clk 0:02:24]} 15. Rfe1 {[%clk 0:02:13]}  Qd7 {[%clk 0:02:13]} 16. h3 {[%clk 0:02:13]}  h6 {[%clk 0:02:08]} 17. Bf1 {[%clk 0:02:10]}  Ng6 {[%clk 0:01:38]} 18. Bh2 {[%clk 0:02:09]}  Rxe1 {[%clk 0:01:37]} 19. Rxe1 {[%clk 0:02:07]}  Re8 {[%clk 0:01:38]} 20. Rxe8+ {[%clk 0:01:54]}  Nxe8 {[%clk 0:01:39]} 21. Qa4 {[%clk 0:01:25]}  Qxa4 {[%clk 0:01:30]} 22. Nxa4 {[%clk 0:01:24]}  b5 {[%clk 0:01:30]} 23. cxb5 {[%clk 0:01:25]}  axb5 {[%clk 0:01:31]} 24. Bxb5 {[%clk 0:01:24]}  Nc7 {[%clk 0:01:31]} 25. Bc6 {[%clk 0:01:21]}  Bxc6 {[%clk 0:01:18]} 26. dxc6 {[%clk 0:01:21]}  Ne8 {[%clk 0:00:59]} 27. b4 {[%clk 0:01:20]}  cxb4 {[%clk 0:00:46]} 28. axb4 {[%clk 0:01:20]}  Ne7 {[%clk 0:00:37]} 29. b5 {[%clk 0:01:19]}  Nc8 {[%clk 0:00:35]} 30. b6 {[%clk 0:01:16]}  Nxb6 {[%clk 0:00:33]} 31. Nxb6 {[%clk 0:01:15]} 1-0


[Site "https://www.chess.com"]

[Event "Titled Tuesday Blitz May 03 Early 2022"]
[White "Visakh N R"]
[Black "Demchenko, Anton"]
[WhiteFideId "25012223"]
[BlackFideId "4160258"]
[WhiteElo "2448"]
[BlackElo "2539"]
[Result "1/2-1/2"]
[Round "06"]
[TimeControl "180+1"]
[Date "2022.05.03"]
[WhiteClock "0:00:02"]
[BlackClock "0:00:03"]

1. e4 {[%clk 0:02:59]}  e5 {[%clk 0:03:00]} 2. Nf3 {[%clk 0:02:56]}  Nc6 {[%clk 0:03:01]} 3. Bb5 {[%clk 0:02:54]}  a6 {[%clk 0:03:01]} 4. Bxc6 {[%clk 0:02:54]}  dxc6 {[%clk 0:03:01]} 5. O-O {[%clk 0:02:54]}  Qf6 {[%clk 0:03:01]} 6. d4 {[%clk 0:02:52]}  exd4 {[%clk 0:03:02]} 7. Qxd4 {[%clk 0:02:49]}  Qxd4 {[%clk 0:03:02]} 8. Nxd4 {[%clk 0:02:50]}  Bd7 {[%clk 0:03:03]} 9. Bf4 {[%clk 0:02:49]}  O-O-O {[%clk 0:03:03]} 10. Nc3 {[%clk 0:02:47]}  Ne7 {[%clk 0:03:02]} 11. f3 {[%clk 0:02:45]}  Ng6 {[%clk 0:03:02]} 12. Be3 {[%clk 0:02:45]}  Bb4 {[%clk 0:02:59]} 13. Nce2 {[%clk 0:02:45]}  Rhe8 {[%clk 0:02:56]} 14. c3 {[%clk 0:02:44]}  Bd6 {[%clk 0:02:56]} 15. Bf2 {[%clk 0:02:42]}  c5 {[%clk 0:02:54]} 16. Nb3 {[%clk 0:02:42]}  b6 {[%clk 0:02:55]} 17. Rfd1 {[%clk 0:02:37]}  f5 {[%clk 0:02:47]} 18. exf5 {[%clk 0:02:37]}  Bxf5 {[%clk 0:02:19]} 19. Ng3 {[%clk 0:02:31]}  Bc2 {[%clk 0:02:16]} 20. Rd2 {[%clk 0:02:26]}  Bxb3 {[%clk 0:02:04]} 21. axb3 {[%clk 0:02:26]}  Bxg3 {[%clk 0:02:04]} 22. Rxd8+ {[%clk 0:02:25]}  Rxd8 {[%clk 0:01:52]} 23. Bxg3 {[%clk 0:01:44]}  a5 {[%clk 0:01:51]} 24. b4 {[%clk 0:01:44]}  cxb4 {[%clk 0:01:50]} 25. cxb4 {[%clk 0:01:45]}  axb4 {[%clk 0:01:50]} 26. Ra8+ {[%clk 0:01:45]}  Kd7 {[%clk 0:01:50]} 27. Ra7 {[%clk 0:01:46]}  Rc8 {[%clk 0:01:50]} 28. Be1 {[%clk 0:01:46]}  Nf4 {[%clk 0:01:29]} 29. Bxb4 {[%clk 0:01:43]}  Re8 {[%clk 0:01:30]} 30. g3 {[%clk 0:01:37]}  Nd5 {[%clk 0:01:28]} 31. Ba3 {[%clk 0:01:30]}  Re1+ {[%clk 0:01:07]} 32. Kf2 {[%clk 0:01:23]}  Rb1 {[%clk 0:01:06]} 33. Ra4 {[%clk 0:01:22]}  b5 {[%clk 0:01:02]} 34. Rg4 {[%clk 0:01:17]}  g6 {[%clk 0:01:01]} 35. Rh4 {[%clk 0:01:13]}  h5 {[%clk 0:01:00]} 36. g4 {[%clk 0:01:13]}  hxg4 {[%clk 0:00:41]} 37. Rxg4 {[%clk 0:01:12]}  b4 {[%clk 0:00:41]} 38. Rxg6 {[%clk 0:01:05]}  bxa3 {[%clk 0:00:41]} 39. bxa3 {[%clk 0:01:06]}  c5 {[%clk 0:00:39]} 40. h4 {[%clk 0:01:02]}  Rh1 {[%clk 0:00:37]} 41. Rg4 {[%clk 0:01:00]}  Kc6 {[%clk 0:00:31]} 42. Kg2 {[%clk 0:00:58]}  Ra1 {[%clk 0:00:29]} 43. Kh2 {[%clk 0:00:54]}  Rxa3 {[%clk 0:00:28]} 44. Kg3 {[%clk 0:00:54]}  Ne3 {[%clk 0:00:23]} 45. Rg8 {[%clk 0:00:52]}  Nf5+ {[%clk 0:00:20]} 46. Kh3 {[%clk 0:00:43]}  Rxf3+ {[%clk 0:00:19]} 47. Kg4 {[%clk 0:00:43]}  Rg3+ {[%clk 0:00:20]} 48. Kh5 {[%clk 0:00:42]}  Kd5 {[%clk 0:00:15]} 49. Rf8 {[%clk 0:00:37]}  Ng7+ {[%clk 0:00:14]} 50. Kh6 {[%clk 0:00:37]}  Ne6 {[%clk 0:00:14]} 51. Rf5+ {[%clk 0:00:33]}  Kd6 {[%clk 0:00:13]} 52. h5 {[%clk 0:00:32]}  c4 {[%clk 0:00:13]} 53. Rf1 {[%clk 0:00:31]}  c3 {[%clk 0:00:14]} 54. Kh7 {[%clk 0:00:31]}  c2 {[%clk 0:00:11]} 55. h6 {[%clk 0:00:30]}  Nd4 {[%clk 0:00:08]} 56. Kh8 {[%clk 0:00:28]}  Rd3 {[%clk 0:00:06]} 57. h7 {[%clk 0:00:28]}  Rg3 {[%clk 0:00:05]} 58. Rc1 {[%clk 0:00:16]}  Rh3 {[%clk 0:00:05]} 59. Rxc2 {[%clk 0:00:15]}  Nxc2 {[%clk 0:00:04]} 60. Kg7 {[%clk 0:00:15]}  Rg3+ {[%clk 0:00:05]} 61. Kf8 {[%clk 0:00:15]}  Rf3+ {[%clk 0:00:05]} 62. Kg7 {[%clk 0:00:16]}  Nd4 {[%clk 0:00:03]} 63. h8=Q {[%clk 0:00:15]}  Ne6+ {[%clk 0:00:04]} 64. Kg6 {[%clk 0:00:14]}  Rf4 {[%clk 0:00:03]} 65. Qa1 {[%clk 0:00:12]}  Rd4 {[%clk 0:00:03]} 66. Qa6+ {[%clk 0:00:11]}  Ke7 {[%clk 0:00:03]} 67. Qa7+ {[%clk 0:00:10]}  Kd6 {[%clk 0:00:03]} 68. Qa1 {[%clk 0:00:11]}  Ke7 {[%clk 0:00:03]} 69. Qb2 {[%clk 0:00:11]}  Kd6 {[%clk 0:00:03]} 70. Qh2+ {[%clk 0:00:11]}  Ke7 {[%clk 0:00:03]} 71. Qg3 {[%clk 0:00:11]}  Rf4 {[%clk 0:00:03]} 72. Qa3+ {[%clk 0:00:10]}  Kd7 {[%clk 0:00:03]} 73. Qa1 {[%clk 0:00:07]}  Kd6 {[%clk 0:00:04]} 74. Qd1+ {[%clk 0:00:06]}  Ke7 {[%clk 0:00:05]} 75. Qa1 {[%clk 0:00:05]}  Kd6 {[%clk 0:00:04]} 76. Qa6+ {[%clk 0:00:05]}  Ke7 {[%clk 0:00:05]} 77. Qb7+ {[%clk 0:00:05]}  Kd6 {[%clk 0:00:05]} 78. Qb8+ {[%clk 0:00:06]}  Ke7 {[%clk 0:00:05]} 79. Qe5 {[%clk 0:00:05]}  Kd7 {[%clk 0:00:03]} 80. Qxf4 {[%clk 0:00:02]}  Nxf4+ {[%clk 0:00:03]} 1/2-1/2


[Site "https://www.chess.com"]

[Event "Titled Tuesday Blitz May 03 Early 2022"]
[White "Vovk, Orest"]
[Black "Zemlyanskii, Ivan"]
[WhiteFideId "14113490"]
[BlackFideId "24249971"]
[WhiteElo "2203"]
[BlackElo "1759"]
[Result "0-1"]
[Round "06"]
[TimeControl "180+1"]
[Date "2022.05.03"]
[WhiteClock "0:00:02"]
[BlackClock "0:00:27"]

1. h4 {[%clk 0:02:54]}  e5 {[%clk 0:02:54]} 2. h5 {[%clk 0:02:54]}  d5 {[%clk 0:02:52]} 3. h6 {[%clk 0:02:54]}  Nxh6 {[%clk 0:02:49]} 4. d4 {[%clk 0:02:54]}  Nc6 {[%clk 0:02:39]} 5. Bxh6 {[%clk 0:02:54]}  gxh6 {[%clk 0:02:38]} 6. dxe5 {[%clk 0:02:55]}  Nxe5 {[%clk 0:02:38]} 7. Nf3 {[%clk 0:02:55]}  Bg7 {[%clk 0:02:34]} 8. Nxe5 {[%clk 0:02:53]}  Bxe5 {[%clk 0:02:34]} 9. Nc3 {[%clk 0:02:53]}  c6 {[%clk 0:02:29]} 10. Rxh6 {[%clk 0:02:47]}  Bf5 {[%clk 0:02:20]} 11. Rh5 {[%clk 0:02:39]}  Qf6 {[%clk 0:02:19]} 12. Qd2 {[%clk 0:02:28]}  Bg6 {[%clk 0:02:16]} 13. Rh3 {[%clk 0:02:20]}  O-O-O {[%clk 0:02:13]} 14. Rf3 {[%clk 0:02:13]}  Qd6 {[%clk 0:02:09]} 15. O-O-O {[%clk 0:01:58]}  d4 {[%clk 0:02:05]} 16. Nb1 {[%clk 0:01:55]}  Rhe8 {[%clk 0:01:58]} 17. g3 {[%clk 0:01:35]}  c5 {[%clk 0:01:52]} 18. Ra3 {[%clk 0:01:30]}  Kb8 {[%clk 0:01:41]} 19. Qa5 {[%clk 0:01:27]}  a6 {[%clk 0:01:34]} 20. Bg2 {[%clk 0:01:26]}  Bf6 {[%clk 0:01:19]} 21. Nd2 {[%clk 0:01:17]}  Rxe2 {[%clk 0:01:14]} 22. Rb3 {[%clk 0:01:12]}  Rd7 {[%clk 0:01:09]} 23. Rb6 {[%clk 0:01:05]}  Qe7 {[%clk 0:00:57]} 24. Qxa6 {[%clk 0:00:51]}  Rxf2 {[%clk 0:00:57]} 25. Bc6 {[%clk 0:00:31]}  Rc7 {[%clk 0:00:48]} 26. Qb5 {[%clk 0:00:29]}  Bg5 {[%clk 0:00:45]} 27. Bxb7 {[%clk 0:00:13]}  Bxd2+ {[%clk 0:00:41]} 28. Kb1 {[%clk 0:00:11]}  Rxb7 {[%clk 0:00:34]} 29. Rxb7+ {[%clk 0:00:12]}  Qxb7 {[%clk 0:00:35]} 30. Qe8+ {[%clk 0:00:11]}  Kc7 {[%clk 0:00:30]} 31. Qe5+ {[%clk 0:00:05]}  Kb6 {[%clk 0:00:29]} 32. Qd6+ {[%clk 0:00:04]}  Qc6 {[%clk 0:00:29]} 33. Qb8+ {[%clk 0:00:04]}  Ka6 {[%clk 0:00:28]} 34. b3 {[%clk 0:00:02]}  Bxc2+ {[%clk 0:00:27]} 35. Kxc2 {[%clk 0:00:02]}  Bf4+ {[%clk 0:00:27]} 0-1


[Site "https://www.chess.com"]

[Event "Titled Tuesday Blitz May 03 Early 2022"]
[White "Vysochin, Spartak"]
[Black "Aaditya Dhingra"]
[WhiteFideId "14103516"]
[BlackFideId "25678191"]
[WhiteElo "2385"]
[BlackElo "1849"]
[Result "1-0"]
[Round "06"]
[TimeControl "180+1"]
[Date "2022.05.03"]
[WhiteClock "0:00:27"]
[BlackClock "0:00:57"]

1. e4 {[%clk 0:03:00]}  e6 {[%clk 0:03:00]} 2. d4 {[%clk 0:03:00]}  d5 {[%clk 0:03:00]} 3. e5 {[%clk 0:02:54]}  c5 {[%clk 0:02:58]} 4. c3 {[%clk 0:02:55]}  Nc6 {[%clk 0:02:59]} 5. Nf3 {[%clk 0:02:55]}  Nge7 {[%clk 0:02:58]} 6. h4 {[%clk 0:02:52]}  Qb6 {[%clk 0:02:56]} 7. dxc5 {[%clk 0:02:46]}  Qxc5 {[%clk 0:02:53]} 8. Bd3 {[%clk 0:02:40]}  Ng6 {[%clk 0:02:49]} 9. Qe2 {[%clk 0:02:38]}  d4 {[%clk 0:02:46]} 10. b4 {[%clk 0:02:31]}  Qb6 {[%clk 0:02:30]} 11. b5 {[%clk 0:02:21]}  Nce7 {[%clk 0:02:21]} 12. h5 {[%clk 0:02:17]}  dxc3 {[%clk 0:02:17]} 13. Nxc3 {[%clk 0:01:56]}  Qa5 {[%clk 0:02:08]} 14. Bd2 {[%clk 0:01:54]}  Nf4 {[%clk 0:02:06]} 15. Ne4 {[%clk 0:01:35]}  Nxe2 {[%clk 0:01:46]} 16. Nd6+ {[%clk 0:01:13]}  Kd7 {[%clk 0:01:44]} 17. Bxa5 {[%clk 0:01:13]}  Nf4 {[%clk 0:01:44]} 18. Be4 {[%clk 0:01:11]}  Ned5 {[%clk 0:01:38]} 19. Nxf7 {[%clk 0:01:08]}  Nxg2+ {[%clk 0:01:29]} 20. Kf1 {[%clk 0:01:07]}  Ngf4 {[%clk 0:01:29]} 21. Nxh8 {[%clk 0:01:07]}  a6 {[%clk 0:01:20]} 22. b6 {[%clk 0:00:59]}  Ke8 {[%clk 0:01:18]} 23. Bxh7 {[%clk 0:00:56]}  Bd7 {[%clk 0:01:17]} 24. Bg6+ {[%clk 0:00:48]}  Ke7 {[%clk 0:01:09]} 25. a4 {[%clk 0:00:47]}  Rc8 {[%clk 0:01:02]} 26. Be4 {[%clk 0:00:28]}  Rc4 {[%clk 0:00:58]} 27. Bxd5 {[%clk 0:00:28]}  Nxd5 {[%clk 0:00:56]} 28. Ng6+ {[%clk 0:00:29]}  Ke8 {[%clk 0:00:56]} 29. Nxf8 {[%clk 0:00:28]}  Kxf8 {[%clk 0:00:57]} 30. Rh4 {[%clk 0:00:27]} 1-0


[Site "https://www.chess.com"]